bitfinex-derivatives/quotes_BTCF0:USTF0_20250424
["timestamp","ask_amount","ask_price","bid_price","bid_amount"]
[1745496683707,0.53637062,92504.0,92503.0,0.001]
[1745496684405,0.17557062,92504.0,92503.0,0.001]
[1745496684604,0.53637062,92504.0,92503.0,0.001]
[1745496685614,0.53637062,92504.0,92503.0,0.1090916]
[1745496687616,0.53637062,92504.0,92503.0,0.001]
[1745496687912,0.5331916,92504.0,92503.0,0.001]
[1745496688213,0.53656503,92504.0,92503.0,0.001]
[1745496688407,0.17576503,92504.0,92503.0,0.001]
[1745496688608,0.53656503,92504.0,92503.0,0.001]
[1745496688810,0.53656503,92504.0,92503.0,0.1090916]
[1745496689116,0.53675944,92504.0,92503.0,0.1090916]
[1745496689917,0.50475944,92504.0,92503.0,0.1090916]
[1745496690214,0.00472837,92504.0,92503.0,0.6418916]
[1745496690411,0.00472837,92504.0,92503.0,0.7041916]
[1745496690611,0.11281877,92504.0,92503.0,0.7041916]
[1745496691721,0.11281877,92504.0,92503.0,0.3433916]
[1745496694128,0.47361877,92504.0,92503.0,0.3433916]
[1745496696138,0.474,92504.0,92503.0,0.3433916]
[1745496697339,0.47414867,92504.0,92503.0,0.3433916]
[1745496697635,0.47414867,92504.0,92503.0,0.173]
[1745496697825,0.50684867,92504.0,92503.0,0.173]
[1745496698231,0.53984867,92504.0,92503.0,0.001]
[1745496703032,0.53984867,92504.0,92503.0,0.1090916]
[1745496704438,0.50714867,92504.0,92503.0,0.1090916]
[1745496704738,0.50714867,92504.0,92503.0,0.2067916]
[1745496705039,0.53754867,92504.0,92503.0,0.2067916]
[1745496705243,0.53754867,92504.0,92503.0,0.3466916]
[1745496706241,0.3608,92514.0,92503.0,0.3466916]
[1745496706242,0.0540358,92521.0,92503.0,0.7074916]
[1745496706445,0.1091778,92517.0,92516.0,0.1080764]
[1745496706637,0.0011,92517.0,92516.0,0.1080764]
[1745496706837,0.0011,92517.0,92516.0,0.1388764]
[1745496707345,0.1131752,92517.0,92516.0,0.3108764]
[1745496707640,0.1151752,92517.0,92516.0,0.3421764]
[1745496708348,0.0071,92517.0,92516.0,0.3421764]
[1745496708547,0.0377,92517.0,92516.0,0.3421764]
[1745496708744,0.1477752,92517.0,92516.0,0.3421764]
[1745496710247,0.1457752,92517.0,92516.0,0.3421764]
[1745496710449,0.1477752,92517.0,92516.0,0.3431764]
[1745496711252,0.1437752,92517.0,92516.0,0.3431764]
[1745496711452,0.1477752,92517.0,92516.0,0.3431764]
[1745496715153,0.1437752,92517.0,92516.0,0.3431764]
[1745496715341,0.1477752,92517.0,92516.0,0.3431764]
[1745496717655,0.0397,92517.0,92516.0,0.3431764]
[1745496717953,0.1457752,92517.0,92516.0,0.3421764]
[1745496718155,0.1477752,92517.0,92516.0,0.3431764]
[1745496718355,0.1477752,92517.0,92516.0,0.35882014]
[1745496718662,0.0397,92517.0,92516.0,0.35882014]
[1745496718852,0.0071,92517.0,92516.0,0.35882014]
[1745496719245,0.0071,92517.0,92516.0,0.3431764]
[1745496720759,0.0051,92517.0,92516.0,0.3421764]
[1745496721059,0.0061,92517.0,92516.0,0.3431764]
[1745496721256,0.0041,92517.0,92516.0,0.3431764]
[1745496722046,0.0031,92517.0,92516.0,0.3431764]
[1745496722270,0.0031,92517.0,92516.0,0.35119971]
[1745496729266,0.00162187,92527.0,92526.0,0.1080647]
[1745496729968,0.00162187,92527.0,92526.0,0.1406647]
[1745496730156,0.00162187,92527.0,92526.0,0.3126647]
[1745496730765,0.00362187,92527.0,92526.0,0.3451647]
[1745496731063,0.00762187,92527.0,92526.0,0.3451647]
[1745496731568,0.00562187,92527.0,92526.0,0.3441647]
[1745496731758,0.00362187,92527.0,92526.0,0.3451647]
[1745496733060,0.00262187,92527.0,92526.0,0.3441647]
[1745496733267,0.00362187,92527.0,92526.0,0.3461647]
[1745496733663,0.00162187,92527.0,92526.0,0.3441647]
[1745496733865,0.00262187,92527.0,92526.0,0.3461647]
[1745496734265,0.00162187,92527.0,92526.0,0.3441647]
[1745496735265,0.00162187,92527.0,92526.0,0.3461647]
[1745496736958,0.00262187,92527.0,92526.0,0.3491647]
[1745496737666,0.00262187,92527.0,92526.0,0.3471647]
[1745496737967,0.00262187,92527.0,92526.0,0.7099647]
[1745496738363,0.00262187,92527.0,92526.0,0.7069647]
[1745496738565,0.00262187,92527.0,92526.0,0.7099647]
[1745496739276,0.00262187,92527.0,92526.0,0.7822447]
[1745496739466,0.0327,92533.0,92532.0,0.1080577]
[1745496739769,0.0052,92536.0,92535.0,0.1080542]
[1745496740264,0.0052,92536.0,92535.0,0.3451542]
[1745496740466,0.0052,92536.0,92535.0,0.35599284]
[1745496741259,0.0062,92536.0,92535.0,0.35799284]
[1745496741761,0.0062,92536.0,92535.0,0.32519284]
[1745496744068,0.0062,92536.0,92535.0,0.29289284]
[1745496744268,0.114253,92536.0,92535.0,0.29289284]
[1745496744569,0.0062,92536.0,92535.0,0.29289284]
[1745496744969,0.0378,92536.0,92535.0,0.29289284]
[1745496745567,0.0378,92536.0,92535.0,0.32499284]
[1745496746881,0.0378,92536.0,92535.0,0.29289284]
[1745496747271,0.0378,92536.0,92535.0,0.12089284]
[1745496748269,0.0378,92536.0,92535.0,0.29289284]
[1745496750775,0.0062,92536.0,92535.0,0.29289284]
[1745496750973,0.0062,92536.0,92535.0,0.35349284]
[1745496752880,0.0382,92536.0,92535.0,0.32349284]
[1745496753181,0.0688,92536.0,92535.0,0.32349284]
[1745496755471,0.0688,92536.0,92535.0,0.35629284]
[1745496757582,0.0382,92536.0,92535.0,0.35629284]
[1745496766393,0.0382,92536.0,92535.0,0.32349284]
[1745496766693,0.0382,92536.0,92535.0,0.29289284]
[1745496766881,0.0713,92536.0,92535.0,0.29289284]
[1745496767081,0.0713,92536.0,92535.0,0.12089284]
[1745496776091,0.0713,92536.0,92535.0,0.29289284]
[1745496778091,0.0713,92536.0,92535.0,0.32529284]
[1745496778286,0.0713,92536.0,92535.0,0.15329284]
[1745496778491,0.0062,92536.0,92535.0,0.15329284]
[1745496778683,0.0062,92536.0,92535.0,0.18559284]
[1745496779296,0.0062,92536.0,92535.0,0.35759284]
[1745496780801,0.0011,92547.0,92546.0,0.1080414]
[1745496780998,0.0011,92547.0,92546.0,0.4688414]
[1745496781190,0.0011,92547.0,92546.0,0.5316414]
[1745496782099,0.033,92548.0,92547.0,0.1080402]
[1745496782401,0.0318,92558.0,92557.0,0.1080285]
[1745496782603,0.0318,92558.0,92557.0,0.4688285]
[1745496783200,0.0318,92558.0,92557.0,0.5327285]
[1745496783593,0.0325,92568.0,92567.0,0.1080168]
[1745496783793,0.0643,92568.0,92567.0,0.1080168]
[1745496785100,0.0703,92568.0,92567.0,0.1080168]
[1745496785304,0.1034,92568.0,92567.0,0.1080168]
[1745496785706,0.006,92568.0,92567.0,0.4698168]
[1745496786008,0.1,92600.0,92577.0,0.0540024]
[1745496786303,0.0331,92591.0,92583.0,0.4687982]
[1745496786499,1e-08,92584.0,92583.0,0.5406782]
[1745496786889,1e-08,92584.0,92583.0,0.6044782]
[1745496787094,1e-08,92584.0,92583.0,1.1372782]
[1745496787294,0.00700001,92584.0,92583.0,1.1372782]
[1745496787499,0.01200001,92584.0,92583.0,1.1372782]
[1745496788104,0.00700001,92584.0,92583.0,1.1372782]
[1745496789103,0.00300001,92584.0,92583.0,1.1372782]
[1745496791407,0.00300001,92584.0,92583.0,1.1372382]
[1745496791799,0.00300001,92584.0,92583.0,1.0341982]
[1745496792306,0.00300001,92584.0,92583.0,0.8621982]
[1745496795207,0.00300001,92584.0,92583.0,0.8952982]
[1745496797106,0.00300001,92584.0,92583.0,1.0672982]
[1745496799309,0.00300001,92584.0,92583.0,0.8952982]
[1745496799609,0.00300001,92584.0,92583.0,0.8621982]
[1745496801508,0.00300001,92584.0,92575.0,0.43252]
[1745496801810,0.0540009,92581.0,92575.0,0.43252]
[1745496802008,0.1735017,92580.0,92579.0,0.1080028]
[1745496802309,0.108004,92578.0,92577.0,0.0540026]
[1745496802500,0.1080063,92576.0,92575.0,0.4688064]
[1745496802902,0.1080145,92569.0,92568.0,0.0312]
[1745496803106,0.1080145,92569.0,92568.0,0.1080157]
[1745496803408,0.2800145,92569.0,92568.0,0.1080157]
[1745496803601,0.172,92569.0,92568.0,0.1080157]
[1745496803802,0.2354,92569.0,92568.0,0.1080157]
[1745496804305,0.0644,92569.0,92568.0,0.1120157]
[1745496811412,0.0644,92569.0,92568.0,0.4728157]
[1745496814116,0.0644,92569.0,92568.0,0.6448157]
[1745496817010,0.0644,92569.0,92568.0,0.6772157]
[1745496817209,0.0644,92569.0,92568.0,0.5052157]
[1745496818117,0.0644,92569.0,92568.0,0.6772157]
[1745496818618,0.0644,92569.0,92568.0,0.7075157]
[1745496822314,1e-08,92584.0,92583.0,0.1079982]
[1745496823422,0.00200001,92584.0,92583.0,0.1079982]
[1745496823920,0.00300001,92584.0,92583.0,0.1079982]
[1745496828624,0.00300001,92584.0,92583.0,0.12364912]
[1745496830224,0.00300001,92584.0,92583.0,0.29564912]
[1745496830923,0.0648,92595.0,92594.0,0.1079853]
[1745496831221,0.3619,92607.0,92599.0,0.1079795]
[1745496831424,0.0961,92606.0,92599.0,0.12363042]
[1745496831609,0.0647,92606.0,92599.0,0.48443042]
[1745496831924,0.0647,92606.0,92599.0,0.49548041]
[1745496832124,0.0647,92606.0,92599.0,0.73378041]
[1745496832314,0.104,92600.0,92599.0,0.73478041]
[1745496832513,0.104,92600.0,92599.0,0.71912949]
[1745496832917,0.102,92600.0,92599.0,0.71812949]
[1745496833318,0.102,92600.0,92599.0,0.54612949]
[1745496834414,0.104,92600.0,92599.0,0.54612949]
[1745496840516,0.104,92600.0,92599.0,0.5618765]
[1745496842122,0.104,92600.0,92599.0,0.51772651]
[1745496842327,0.104,92600.0,92599.0,0.12372651]
[1745496842521,0.104,92600.0,92599.0,0.11858061]
[1745496843129,0.1671,92600.0,92599.0,0.11858061]
[1745496844829,0.1671,92600.0,92599.0,0.15148061]
[1745496846027,0.1671,92600.0,92599.0,0.51228061]
[1745496846422,0.1671,92600.0,92599.0,0.54238061]
[1745496848431,0.1671,92600.0,92599.0,0.51228061]
[1745496849330,0.1671,92600.0,92599.0,0.68428061]
[1745496850130,0.1671,92600.0,92599.0,0.51228061]
[1745496853628,0.104,92600.0,92599.0,0.51228061]
[1745496853936,0.0011,92607.0,92606.0,0.1079714]
[1745496854625,0.0011,92607.0,92606.0,0.2046714]
[1745496854934,0.0041,92607.0,92606.0,0.2056714]
[1745496855232,0.0081,92607.0,92606.0,0.2056714]
[1745496855424,0.0051,92607.0,92606.0,0.2046714]
[1745496855621,0.0081,92607.0,92606.0,0.2046714]
[1745496855826,1e-08,92607.0,92606.0,0.21285649]
[1745496857227,1e-08,92607.0,92606.0,0.38485649]
[1745496857733,0.0947,92612.0,92611.0,0.1079655]
[1745496858730,0.0947,92612.0,92611.0,0.4687655]
[1745496858925,0.0947,92612.0,92611.0,0.4697655]
[1745496866430,0.062,92612.0,92611.0,0.5020655]
[1745496867540,0.062,92612.0,92611.0,0.5060655]
[1745496868544,0.062,92612.0,92611.0,0.5391655]
[1745496877637,0.06211127,92612.0,92611.0,0.5391655]
[1745496882341,0.00011127,92612.0,92611.0,0.5391655]
[1745496887154,0.0627,92621.0,92620.0,0.107955]
[1745496887744,0.0319,92631.0,92630.0,0.1079434]
[1745496887948,0.0633,92631.0,92630.0,0.4687434]
[1745496888948,0.0963,92631.0,92630.0,0.4687434]
[1745496890653,0.07032,92658.0,92644.0,0.0539631]
[1745496890857,0.07032,92658.0,92655.0,0.1079137]
[1745496891155,0.07032,92658.0,92657.0,0.4687119]
[1745496891359,0.178244,92658.0,92657.0,0.4687119]
[1745496891855,0.107924,92658.0,92657.0,0.4687119]
[1745496892159,0.0305,92664.0,92663.0,0.1079049]
[1745496892653,0.138416,92664.0,92663.0,0.1079049]
[1745496892956,0.138416,92664.0,92663.0,0.11872995]
[1745496893152,0.310416,92664.0,92663.0,0.11872995]
[1745496894257,0.2025,92664.0,92663.0,0.11872995]
[1745496894555,0.2055,92664.0,92663.0,0.11872995]
[1745496895155,0.0335,92664.0,92663.0,0.11872995]
[1745496896149,0.2055,92664.0,92663.0,0.11872995]
[1745496899363,0.20574655,92664.0,92663.0,0.11872995]
[1745496900260,0.03374655,92664.0,92663.0,0.11872995]
[1745496901065,0.20574655,92664.0,92663.0,0.11872995]
[1745496907173,0.20574655,92664.0,92663.0,0.1079049]
[1745496908373,0.20574655,92664.0,92663.0,0.4687049]
[1745496909377,0.31366255,92664.0,92663.0,0.3608]
[1745496909572,0.42156635,92664.0,92663.0,0.3608]
[1745496910168,0.48376635,92664.0,92663.0,0.3608]
[1745496921184,0.26794655,92664.0,92663.0,0.3928]
[1745496921479,0.17524655,92664.0,92663.0,0.7507049]
[1745496921675,0.00161956,92677.0,92676.0,0.1078898]
[1745496921980,0.06582544,92697.0,92682.0,0.0539408]
[1745496922187,0.4678349,92694.0,92691.0,0.3608]
[1745496922373,0.0011,92697.0,92691.0,0.3608]
[1745496922573,0.0011,92697.0,92696.0,0.1078665]
[1745496923066,0.0011,92697.0,92696.0,0.2798665]
[1745496923271,0.1089654,92697.0,92696.0,0.2798665]
[1745496923471,0.0011,92697.0,92696.0,0.2798665]
[1745496923777,0.1089654,92697.0,92696.0,0.2798665]
[1745496923984,0.0071,92697.0,92696.0,0.172]
[1745496924279,0.1791,92697.0,92694.0,0.0539341]
[1745496924479,0.1791,92697.0,92692.0,0.0539354]
[1745496924682,0.1791,92697.0,92694.0,0.1078685]
[1745496926373,0.1731,92697.0,92694.0,0.1078685]
[1745496926576,0.1791,92697.0,92694.0,0.1078685]
[1745496927381,0.1791,92697.0,92692.0,0.0539354]
[1745496927678,0.1791,92697.0,92693.0,0.1078698]
[1745496928278,0.1791,92697.0,92691.0,0.4147361]
[1745496928279,0.1078712,92692.0,92691.0,0.3608]
[1745496928479,0.1078739,92690.0,92682.0,0.107882]
[1745496928684,0.10788,92685.0,92681.0,0.1078832]
[1745496928882,0.0318,92684.0,92683.0,0.1078817]
[1745496929068,0.0318,92684.0,92676.0,0.37151102]
[1745496929069,0.0631,92684.0,92676.0,0.37151102]
[1745496929582,0.1709809,92684.0,92676.0,0.37151102]
[1745496929778,0.1078886,92677.0,92676.0,0.47940072]
[1745496930084,0.1078886,92677.0,92676.0,0.37151102]
[1745496931782,0.1078886,92677.0,92671.0,0.52540198]
[1745496931783,0.1078945,92672.0,92671.0,0.09225218]
[1745496932075,0.1079038,92664.0,92657.0,0.3608]
[1745496932275,0.1079108,92658.0,92657.0,0.3608]
[1745496933975,0.1079108,92658.0,92657.0,0.3638]
[1745496934580,0.1079108,92658.0,92657.0,0.3658]
[1745496937179,0.1079108,92658.0,92657.0,0.005]
[1745496938087,0.1382108,92658.0,92657.0,0.005]
[1745496938588,0.1382108,92658.0,92657.0,0.003]
[1745496939694,0.1079119,92657.0,92656.0,0.0324]
[1745496941595,0.1388119,92657.0,92656.0,0.0324]
[1745496942089,0.1079119,92657.0,92656.0,0.0344]
[1745496942593,0.1727119,92657.0,92656.0,0.0344]
[1745496943088,0.1727119,92657.0,92656.0,0.0324]
[1745496943300,0.1727119,92657.0,92656.0,0.0344]
[1745496944793,0.1727119,92657.0,92656.0,0.0324]
[1745496945590,0.1409119,92657.0,92656.0,0.0324]
[1745496947991,0.1730119,92657.0,92656.0,0.0324]
[1745496948179,0.1409119,92657.0,92656.0,0.0324]
[1745496949286,0.1079119,92657.0,92656.0,0.0324]
[1745496949682,0.1079119,92657.0,92656.0,0.1403131]
[1745496949987,0.1079119,92657.0,92656.0,0.0334]
[1745496951094,0.1079119,92657.0,92656.0,0.0656]
[1745496951295,0.1079119,92657.0,92656.0,0.0666]
[1745496951693,0.1079119,92657.0,92656.0,0.1745131]
[1745496953595,0.1079119,92657.0,92656.0,0.0666]
[1745496953797,0.1079119,92657.0,92656.0,0.1745131]
[1745496958002,0.1710119,92657.0,92656.0,0.1745131]
[1745496958997,0.1710119,92657.0,92656.0,0.1735131]
[1745496959195,0.1710119,92657.0,92656.0,0.1745131]
[1745496959805,0.1379119,92657.0,92656.0,0.1745131]
[1745496963816,0.1379119,92657.0,92656.0,0.39298241]
[1745496964110,0.1079119,92657.0,92656.0,0.39398241]
[1745496966707,0.1079119,92657.0,92656.0,0.1745131]
[1745496967505,0.1079119,92657.0,92656.0,0.1735131]
[1745496967706,0.1079119,92657.0,92656.0,0.1745131]
[1745496970812,0.1079119,92657.0,92656.0,0.1765131]
[1745496971015,0.1079119,92657.0,92656.0,0.1775131]
[1745496971906,0.1384119,92657.0,92656.0,0.1775131]
[1745496972211,0.138424,92657.0,92647.0,0.01062921]
[1745496972414,0.1079236,92647.0,92646.0,0.21946931]
[1745496973316,0.1699236,92647.0,92646.0,0.21946931]
[1745496973610,0.2778596,92647.0,92646.0,0.22446931]
[1745496974013,0.2778596,92647.0,92646.0,0.21946931]
[1745496974214,0.4498596,92647.0,92646.0,0.22246931]
[1745496974712,0.4498596,92647.0,92637.0,0.01091236]
[1745496974713,0.1079317,92640.0,92639.0,0.21946931]
[1745496975113,0.1079317,92640.0,92639.0,0.32740221]
[1745496975612,0.1696317,92640.0,92639.0,0.21946931]
[1745496975819,0.1696317,92640.0,92639.0,0.32740221]
[1745496976011,0.1696317,92640.0,92639.0,0.39090221]
[1745496976806,0.1696317,92640.0,92639.0,0.39190221]
[1745496977918,0.1696317,92640.0,92639.0,0.1714329]
[1745496978108,0.1696317,92640.0,92639.0,0.1724329]
[1745496979423,0.1696317,92640.0,92639.0,0.1714329]
[1745496979720,0.1696317,92640.0,92639.0,0.1724329]
[1745496980017,0.1696317,92640.0,92639.0,0.1714329]
[1745496980217,0.1696317,92640.0,92639.0,0.1724329]
[1745496980820,0.1079304,92642.0,92641.0,0.1079294]
[1745496981015,0.1618885,92650.0,92649.0,0.1079212]
[1745496981221,0.107924,92650.0,92649.0,0.1079212]
[1745496982114,0.107924,92650.0,92649.0,0.2799212]
[1745496983212,0.107924,92650.0,92649.0,0.1079212]
[1745496983412,0.107924,92650.0,92649.0,0.1089212]
[1745496990427,0.107924,92650.0,92649.0,0.1079212]
[1745496990724,0.107924,92650.0,92649.0,0.1089212]
[1745496992829,0.107924,92650.0,92649.0,0.001]
[1745496993216,0.279924,92650.0,92649.0,0.001]
[1745496993420,0.342624,92650.0,92649.0,0.001]
[1745496994330,0.1079224,92648.0,92647.0,0.031]
[1745496995336,0.1721224,92648.0,92647.0,0.031]
[1745496995629,0.1721224,92648.0,92647.0,0.1399236]
[1745496995819,0.1721224,92648.0,92647.0,0.032]
[1745496996321,0.1721224,92648.0,92647.0,0.034]
[1745496996826,0.1721224,92648.0,92647.0,0.032]
[1745496997025,0.1721224,92648.0,92647.0,0.034]
[1745496997221,0.1721224,92648.0,92647.0,0.033]
[1745496997932,0.1721224,92648.0,92647.0,0.034]
[1745497000530,0.1721224,92648.0,92647.0,0.003]
[1745497001120,0.3441224,92648.0,92647.0,0.003]
[1745497001520,0.8441224,92648.0,92647.0,0.003]
[1745497001734,0.8441224,92648.0,92647.0,0.002]
[1745497002534,0.1079294,92642.0,92641.0,0.0329]
[1745497003432,0.1700294,92642.0,92641.0,0.0329]
[1745497003738,0.1700294,92642.0,92641.0,0.0349]
[1745497004119,0.1700294,92642.0,92641.0,0.0359]
[1745497004428,0.1700294,92642.0,92641.0,0.003]
[1745497005228,0.3420294,92642.0,92641.0,0.003]
[1745497005627,0.3420294,92642.0,92637.0,0.0332]
[1745497005628,0.592044,92642.0,92616.0,0.43626884]
[1745497005929,0.1619354,92620.0,92619.0,0.1079506]
[1745497006821,0.053978,92620.0,92617.0,0.4789787]
[1745497007034,0.1079574,92618.0,92617.0,0.586936]
[1745497007334,0.1079574,92618.0,92617.0,0.59763668]
[1745497009537,0.1079574,92618.0,92617.0,0.59963668]
[1745497010031,0.1079574,92618.0,92617.0,0.59863668]
[1745497010223,0.1079574,92618.0,92617.0,0.59963668]
[1745497020051,0.1079574,92618.0,92617.0,0.43770068]
[1745497020242,0.1079574,92618.0,92617.0,0.54565918]
[1745497020842,0.1079574,92618.0,92617.0,0.0352]
[1745497021042,0.1398574,92618.0,92617.0,0.1431585]
[1745497021244,0.1710574,92618.0,92617.0,0.1431585]
[1745497021651,0.03335281,92618.0,92617.0,0.1431585]
[1745497021845,0.14131021,92618.0,92617.0,0.1431585]
[1745497022145,0.1079574,92618.0,92617.0,0.1431585]
[1745497022541,0.1079574,92618.0,92617.0,0.1744585]
[1745497023253,0.1079574,92618.0,92617.0,0.3464585]
[1745497023450,0.1079574,92618.0,92617.0,0.35738186]
[1745497023842,0.0539706,92632.0,92619.0,0.1079562]
[1745497024156,0.1079364,92638.0,92637.0,0.1079341]
[1745497024350,0.1079364,92638.0,92637.0,0.2000341]
[1745497024550,0.1395364,92638.0,92637.0,0.2000341]
[1745497024751,0.1935039,92638.0,92637.0,0.2000341]
[1745497024948,0.1619039,92638.0,92637.0,0.2000341]
[1745497025744,0.1649039,92638.0,92637.0,0.2000341]
[1745497025949,0.0569675,92638.0,92637.0,0.2000341]
[1745497026354,0.0579675,92638.0,92637.0,0.2000341]
[1745497026947,0.0883675,92638.0,92637.0,0.2000341]
[1745497028551,0.0579675,92638.0,92637.0,0.2000341]
[1745497029249,0.0579675,92638.0,92637.0,0.3720341]
[1745497030453,0.1119341,92638.0,92637.0,0.3720341]
[1745497030958,0.004,92638.0,92637.0,0.3720341]
[1745497031455,0.1119341,92638.0,92637.0,0.3720341]
[1745497032052,0.004,92638.0,92637.0,0.3720341]
[1745497032453,0.1119341,92638.0,92637.0,0.3720341]
[1745497035553,0.0539591,92652.0,92651.0,0.1079177]
[1745497035759,0.0301,92651.0,92650.0,0.1618796]
[1745497036163,0.0301,92651.0,92650.0,0.3338796]
[1745497036363,0.0301,92651.0,92650.0,0.40593416]
[1745497037961,0.0011,92667.0,92650.0,0.71278656]
[1745497038158,0.140002,92666.0,92665.0,0.1079026]
[1745497038358,0.0321,92666.0,92665.0,0.1079026]
[1745497038558,0.1400014,92666.0,92665.0,0.1079026]
[1745497038860,0.1400014,92666.0,92665.0,0.1698026]
[1745497039067,0.0321,92666.0,92665.0,0.1698026]
[1745497039256,0.0321,92666.0,92665.0,0.3418026]
[1745497039458,0.0351,92666.0,92665.0,0.3418026]
[1745497039666,0.1430014,92666.0,92665.0,0.3418026]
[1745497040265,0.0351,92666.0,92665.0,0.3418026]
[1745497040961,0.0351,92666.0,92665.0,0.34976658]
[1745497041571,0.0351,92666.0,92665.0,0.36550394]
[1745497043764,0.0052,92680.0,92665.0,0.72631733]
[1745497043968,1e-08,92680.0,92679.0,0.4686863]
[1745497044263,1e-08,92680.0,92679.0,0.48442366]
[1745497044469,1e-08,92680.0,92679.0,0.54862366]
[1745497044654,1e-08,92680.0,92679.0,0.5328863]
[1745497045060,1e-08,92680.0,92679.0,0.5338863]
[1745497045365,1e-08,92680.0,92679.0,0.7058863]
[1745497046670,1e-08,92680.0,92679.0,0.72138684]
[1745497047169,1e-08,92680.0,92679.0,0.72138644]
[1745497047368,1e-08,92680.0,92679.0,0.82928644]
[1745497047665,1e-08,92680.0,92679.0,0.82956816]
[1745497050467,1e-08,92680.0,92679.0,0.8137863]
[1745497050673,1e-08,92680.0,92679.0,0.8292852]
[1745497050865,1e-08,92680.0,92679.0,0.8137863]
[1745497051070,1e-08,92680.0,92679.0,0.82928508]
[1745497051268,0.00106001,92697.0,92696.0,0.1078665]
[1745497051477,0.00106001,92697.0,92696.0,0.4686665]
[1745497051777,0.00161934,92699.0,92698.0,0.1078642]
[1745497052164,0.0328,92714.0,92713.0,0.1078467]
[1745497052370,0.0328,92714.0,92713.0,0.4686467]
[1745497053074,0.2041456,92714.0,92713.0,0.4686467]
[1745497053575,0.2041456,92714.0,92713.0,0.3608]
[1745497054163,0.3771456,92714.0,92713.0,0.3608]
[1745497054362,0.3771456,92714.0,92713.0,0.4686467]
[1745497055171,0.3771456,92714.0,92713.0,0.3608]
[1745497056189,0.3771456,92714.0,92713.0,0.4686467]
[1745497057470,0.3771456,92714.0,92713.0,0.3608]
[1745497059280,0.3771456,92714.0,92713.0,0.4686467]
[1745497060581,0.3771456,92714.0,92713.0,0.3608]
[1745497060879,0.3761456,92714.0,92713.0,0.3608]
[1745497061073,0.1078642,92698.0,92697.0,0.0636]
[1745497061269,0.4686642,92698.0,92697.0,0.1714654]
[1745497061472,0.1078642,92698.0,92697.0,0.1714654]
[1745497061966,0.1736642,92698.0,92697.0,0.1714654]
[1745497062783,0.1404642,92698.0,92697.0,0.1744654]
[1745497063280,0.1404642,92698.0,92697.0,0.1754654]
[1745497063576,0.0326,92698.0,92697.0,0.1754654]
[1745497063771,0.1231248,92711.0,92697.0,0.0676]
[1745497063976,0.1231248,92711.0,92710.0,0.1078502]
[1745497064983,0.1546248,92711.0,92710.0,0.1721502]
[1745497066979,0.1546248,92711.0,92710.0,0.1731502]
[1745497067579,0.1546248,92711.0,92710.0,0.18865602]
[1745497067774,0.1078517,92711.0,92710.0,0.24258052]
[1745497069578,0.02420774,92712.0,92710.0,0.24258052]
[1745497069785,0.1078517,92711.0,92710.0,0.2270747]
[1745497069976,0.1078517,92711.0,92710.0,0.24255686]
[1745497070679,0.02420774,92712.0,92711.0,0.1078491]
[1745497070869,0.02420774,92712.0,92711.0,0.18583126]
[1745497072178,0.02420774,92712.0,92711.0,0.18683126]
[1745497072383,0.05650774,92712.0,92711.0,0.18683126]
[1745497073683,0.05650774,92712.0,92711.0,0.1713491]
[1745497075889,0.28302618,92714.0,92713.0,0.1078467]
[1745497076889,0.28302618,92714.0,92713.0,0.1690467]
[1745497077280,0.28302618,92714.0,92713.0,0.1700467]
[1745497078185,0.39087178,92714.0,92713.0,0.0622]
[1745497078378,0.39087178,92714.0,92713.0,0.031]
[1745497078579,0.42357178,92714.0,92713.0,0.031]
[1745497078979,0.47407178,92714.0,92713.0,0.031]
[1745497080074,0.64607178,92714.0,92713.0,0.031]
[1745497080274,0.64607178,92714.0,92713.0,0.1388467]
[1745497081478,0.75393178,92714.0,92713.0,0.031]
[1745497081678,1.18393178,92714.0,92713.0,0.001]
[1745497081981,1.68393178,92714.0,92713.0,0.001]
[1745497082891,0.1078479,92712.0,92711.0,0.0326]
[1745497083092,0.1078537,92707.0,92706.0,0.27236849]
[1745497083888,0.1078677,92695.0,92694.0,0.32920397]
[1745497084077,0.2798677,92695.0,92694.0,0.32920397]
[1745497084680,0.3300677,92695.0,92694.0,0.32920397]
[1745497085691,0.3300677,92695.0,92694.0,0.33320397]
[1745497085881,0.3300677,92695.0,92694.0,0.33620397]
[1745497086077,0.8300677,92695.0,92694.0,0.007]
[1745497086286,0.9379477,92695.0,92694.0,0.007]
[1745497086786,0.9379477,92695.0,92694.0,0.005]
[1745497087586,0.9379477,92695.0,92694.0,0.003]
[1745497088492,0.1078933,92673.0,92666.0,0.05502924]
[1745497088681,0.5378933,92673.0,92666.0,0.03417914]
[1745497088986,0.5378933,92673.0,92669.0,0.1078976]
[1745497089187,0.7098933,92673.0,92669.0,0.1078976]
[1745497089377,0.7098933,92673.0,92667.0,0.0316]
[1745497089576,0.7431933,92673.0,92672.0,0.43709847]
[1745497089787,0.7431933,92673.0,92672.0,0.44309847]
[1745497089989,0.7431933,92673.0,92672.0,0.1138945]
[1745497090181,0.5711933,92673.0,92672.0,0.1138945]
[1745497090376,0.5711933,92673.0,92672.0,0.1454945]
[1745497091081,0.5378933,92673.0,92672.0,0.1454945]
[1745497091388,0.5378933,92673.0,92672.0,0.1524945]
[1745497091389,0.5388933,92673.0,92672.0,0.1524945]
[1745497091587,0.5388933,92673.0,92672.0,0.1829945]
[1745497092477,0.4696933,92673.0,92672.0,0.1829945]
[1745497098990,0.4696933,92673.0,92672.0,0.0751]
[1745497099393,0.1079003,92667.0,92666.0,0.00107914]
[1745497100296,0.3131003,92667.0,92666.0,0.00107914]
[1745497100687,0.2799003,92667.0,92666.0,0.10898054]
[1745497101083,0.2809003,92667.0,92666.0,0.14918054]
[1745497101391,0.1089003,92667.0,92666.0,0.14918054]
[1745497101790,0.1089003,92667.0,92666.0,0.15418054]
[1745497102182,0.1079003,92667.0,92666.0,0.14718054]
[1745497102385,0.1079003,92667.0,92666.0,0.14418054]
[1745497102594,0.1079003,92667.0,92666.0,0.14618054]
[1745497103793,0.1079003,92667.0,92666.0,0.14718054]
[1745497110501,0.1078984,92669.0,92668.0,0.107898]
[1745497110897,0.1078984,92669.0,92668.0,0.173998]
[1745497111705,0.1078984,92669.0,92668.0,0.174998]
[1745497112001,0.1078984,92669.0,92668.0,0.177998]
[1745497118303,0.1078857,92683.0,92682.0,0.1618213]
[1745497118896,0.1618273,92683.0,92682.0,0.0539408]
[1745497119099,0.215769,92683.0,92682.0,0.0539408]
[1745497119705,0.215769,92683.0,92682.0,0.1183408]
[1745497120405,0.218769,92683.0,92682.0,0.1183408]
[1745497123308,0.217769,92683.0,92682.0,0.1183408]
[1745497123508,0.218769,92683.0,92682.0,0.1183408]
[1745497124105,0.216769,92683.0,92682.0,0.1183408]